bitfinex/quotes_SOLUSD_20260125
["timestamp","ask_amount","ask_price","bid_price","bid_amount"]
[1769376742207,4.2285308,118.18,118.17,2.80067594]
[1769376742407,2.80067594,118.21,118.17,2.80067594]
[1769376742612,4.2285308,118.19,118.17,2.80067594]
[1769376742999,4.2285308,118.19,118.18,2.80067594]
[1769376744008,4.2285308,118.19,118.17,2.80067594]
[1769376746312,4.2285308,118.19,118.16,12.68243794]
[1769376746512,4.2285308,118.19,118.17,2.80067594]
[1769376753938,4.42637005,118.17,118.13,8.46472876]
[1769376754225,4.42637005,118.15,118.12,8.46574082]
[1769376754400,4.42637005,118.15,118.11,15.61143093]
[1769376755597,4.42637005,118.15,118.11,12.81075499]
[1769376757120,4.42637005,118.13,118.1,0.2]
[1769376757418,4.42637005,118.12,118.1,0.2]
[1769376759511,7.22704599,118.12,118.1,0.2]
[1769376760011,4.42637005,118.12,118.1,0.2]
[1769376761817,4.42637005,118.12,118.09,4.34450189]
[1769376761818,4.42637005,118.11,118.08,4.34450189]
[1769376762019,7.22704599,118.12,118.08,4.34450189]
[1769376762320,4.42637005,118.12,118.08,7.14517783]
[1769376762517,4.42637005,118.12,118.09,4.34450189]
[1769376765120,6.83115029,118.12,118.08,12.81325319]
[1769376765300,4.42637005,118.12,118.08,12.81325319]
[1769376765923,4.42637005,118.12,118.09,4.34450189]
[1769376766222,6.83115029,118.14,118.1,4.34450189]
[1769376766530,4.42637005,118.15,118.12,4.34450189]
[1769376767105,4.42637005,118.15,118.12,12.81024866]
[1769376767800,4.42637005,118.15,118.12,4.34450189]
[1769376771134,4.42637005,118.14,118.11,12.81084457]
[1769376771600,6.83115029,118.15,118.12,4.34450189]
[1769376772412,4.42637005,118.15,118.12,4.34450189]
[1769376772630,6.83115029,118.15,118.12,4.34450189]
[1769376775029,4.42637005,118.15,118.12,4.34450189]
[1769376775825,6.83115029,118.13,118.09,4.34450189]
[1769376776125,6.83115029,118.12,118.09,4.34450189]
[1769376776329,4.42637005,118.12,118.09,4.34450189]
[1769376776535,4.42637005,118.12,118.09,12.81260767]
[1769376776924,4.42637005,118.12,118.09,4.34450189]
[1769376777121,6.83115029,118.12,118.09,4.34450189]
[1769376777518,4.42637005,118.12,118.09,4.34450189]
[1769376779339,4.42637005,118.13,118.09,4.34450189]
[1769376780935,4.42637005,118.12,118.08,12.81303099]
[1769376781114,4.42637005,118.12,118.08,15.21781123]
[1769376781310,4.42637005,118.12,118.09,4.34450189]
[1769376781548,4.42637005,118.12,118.09,15.2173342]
[1769376781844,4.42637005,118.12,118.09,12.81255396]
[1769376782231,4.42637005,118.14,118.11,4.34450189]
[1769376782541,4.42637005,118.16,118.12,4.34450189]
[1769376782743,4.42637005,118.15,118.12,4.34450189]
[1769376784333,4.42637005,118.15,118.11,4.10394638]
[1769376784531,4.41303445,118.11,118.07,4.10394638]
[1769376784720,6.81781469,118.1,118.07,4.10394638]
[1769376785329,4.41303445,118.1,118.07,4.10394638]
[1769376787140,6.81781469,118.1,118.07,4.10394638]
[1769376787744,6.81781469,118.1,118.07,12.57349107]
[1769376787745,4.41303445,118.1,118.07,12.57349107]
[1769376787961,6.81781469,118.12,118.08,4.10394638]
[1769376788240,4.41303445,118.11,118.08,4.10394638]
[1769376788937,6.81781469,118.12,118.08,4.10394638]
[1769376789234,4.41303445,118.12,118.09,4.10394638]
[1769376789842,6.81781469,118.11,118.08,4.10394638]
[1769376790028,6.81781469,118.11,118.07,12.57306203]
[1769376790234,4.41303445,118.1,118.07,12.57306203]
[1769376790427,4.41303445,118.11,118.06,0.1]
[1769376790628,8.46627092,118.12,118.04,0.1]
[1769376790951,5.36086188,118.11,118.04,0.1]
[1769376791125,4.41303445,118.09,118.05,4.10394638]
[1769376791329,6.81781469,118.09,118.06,4.10394638]
[1769376791543,6.81781469,118.1,118.06,4.10394638]
[1769376791850,2.40478024,118.09,118.06,4.10394638]
[1769376792041,4.41303445,118.06,118.04,0.1]
[1769376792422,29.6360557,118.1,118.01,0.1]
[1769376792423,4.41303445,118.04,118.01,0.1]
[1769376792644,6.81781469,118.05,118.01,0.1]
[1769376792849,4.41303445,118.05,118.01,6.60872662]
[1769376793146,4.41303445,118.05,118.01,4.20394638]
[1769376793321,6.81781469,118.05,118.01,4.20394638]
[1769376793525,4.41303445,118.04,118.01,4.20394638]
[1769376793725,6.81781469,118.04,118.01,0.1]
[1769376794142,4.41303445,118.02,118.01,0.1]
[1769376794554,2.40478024,118.03,118.01,0.1]
[1769376794555,6.81781469,118.03,118.01,0.1]
[1769376794762,4.41303445,118.05,118.02,4.10394638]
[1769376795742,4.41303445,118.05,118.01,4.50299687]
[1769376796175,6.56918835,118.07,118.03,4.40299687]
[1769376796459,4.16440811,118.07,118.03,4.40299687]
[1769376797372,4.16440811,118.07,118.01,0.1]
[1769376797373,4.16440811,118.04,118.01,0.1]
[1769376797981,4.16440811,118.04,118.01,4.50299687]
[1769376799067,4.16440811,118.03,118.01,0.1]
[1769376799355,4.16440811,118.02,118.01,0.1]
[1769376799959,4.16440811,118.02,117.99,0.2]
[1769376800658,4.16440811,118.02,117.99,4.60299687]
[1769376800857,4.16440811,118.02,117.99,0.2]
[1769376801051,4.16440811,118.01,117.99,0.2]
[1769376802382,2.40478024,118.0,117.98,0.1]
[1769376802672,4.16440811,118.01,117.98,0.1]
[1769376804265,4.16440811,118.01,117.98,4.50299687]
[1769376805749,4.16440811,118.01,117.98,0.1]
[1769376806071,6.56918835,118.01,117.98,0.1]
[1769376806272,4.16440811,118.0,117.97,0.1]
[1769376806458,4.16440811,117.99,117.97,0.1]
[1769376808773,4.16440811,118.0,117.97,0.1]
[1769376809876,4.16440811,118.02,117.98,4.40299687]
[1769376810460,4.16440811,118.02,117.98,6.80777711]
[1769376810864,4.16440811,118.03,117.99,36.80777711]
[1769376811061,4.16440811,118.03,118.0,4.40299687]
[1769376812186,4.16440811,118.03,117.99,38.47469568]
[1769376812383,4.16440811,118.0,117.99,30.0]
[1769376813577,4.38835306,118.01,117.99,30.0]
[1769376814483,4.38835306,118.02,117.99,30.0]
[1769376816178,4.38835306,118.02,117.99,28.84]
[1769376816785,4.34446952,118.03,117.99,27.09836918]
[1769376816974,4.25801457,117.99,117.97,0.1]
[1769376817480,2.40478024,117.99,117.95,4.21189071]
[1769376817888,6.56379481,117.99,117.95,4.21189071]
[1769376818384,6.56379481,117.97,117.94,0.1]
[1769376818579,4.15901457,117.96,117.94,0.1]
[1769376819389,6.56379481,117.96,117.94,0.1]
[1769376820278,4.15901457,117.96,117.94,0.1]
[1769376820686,2.40478024,117.95,117.94,0.1]
[1769376820865,4.15901457,117.96,117.94,0.1]
[1769376821065,34.22495044,118.01,117.96,4.21189071]
[1769376821066,5.34408856,118.01,117.96,4.21189071]
[1769376821283,2.40478024,118.01,117.95,4.21189071]
[1769376821478,2.40478024,118.0,117.96,4.21189071]
[1769376821785,4.15901457,118.0,117.96,4.21189071]
[1769376821986,6.56379481,118.0,117.96,4.21189071]
[1769376822375,4.15901457,118.0,117.96,4.21189071]
[1769376823391,4.15901457,118.0,117.95,6.61667095]
[1769376823593,4.15901457,117.98,117.95,4.21189071]
[1769376823880,6.56379481,117.98,117.94,4.31189071]
[1769376824376,6.56379481,117.97,117.94,0.1]
[1769376824886,6.56379481,117.96,117.94,0.1]
[1769376825066,4.11742442,117.94,117.89,35.88975473]
[1769376825273,2.40478024,117.92,117.89,35.88975473]
[1769376825472,6.52220466,117.93,117.89,40.10164544]
[1769376825777,6.53053176,117.93,117.89,40.10164544]
[1769376826180,4.07625017,117.9,117.89,35.80699033]
[1769376826885,6.448595,117.91,117.89,35.80699033]
[1769376827390,6.448595,117.92,117.89,35.80699033]
[1769376827588,10.50011737,117.92,117.89,35.80699033]
[1769376828091,18.98051735,117.92,117.89,35.80699033]
[1769376828487,10.45976249,117.9,117.89,13.70622782]
[1769376828790,10.45976249,117.9,117.87,0.1]
[1769376828989,6.46462971,117.89,117.87,0.1]
[1769376829190,10.45976249,117.9,117.87,0.1]
[1769376829489,6.46462971,117.89,117.87,0.1]
[1769376830082,3.99513278,117.9,117.87,0.1]
[1769376830379,18.94173117,117.9,117.87,0.1]
[1769376830580,3.99513278,117.9,117.87,0.1]
[1769376830792,10.45976249,117.9,117.87,0.1]
[1769376831190,3.99513278,117.9,117.87,0.1]
[1769376831386,3.99513278,117.9,117.87,4.31189071]
[1769376831890,3.95518145,117.92,117.88,10.67652042]
[1769376832188,18.89895616,117.94,117.89,4.21189071]
[1769376832377,3.95518145,117.93,117.89,4.21189071]
[1769376834580,26.54009763,117.95,117.89,4.21189071]
[1769376834581,8.47846143,117.95,117.89,4.21189071]
[1769376834786,6.46462971,117.93,117.89,4.21189071]
[1769376835502,18.89889805,117.94,117.89,10.67652042]
[1769376835873,18.8981125,117.95,117.91,4.21189071]
[1769376836376,3.95518145,117.98,117.93,4.21189071]
[1769376836582,18.89582404,117.98,117.93,10.67652042]
[1769376836777,3.95518145,117.97,117.93,10.67652042]
[1769376837297,3.95518145,117.97,117.89,29.68867503]
[1769376837298,3.95518145,117.98,117.94,10.67652042]
[1769376837595,18.89603224,117.98,117.94,4.21189071]
[1769376838693,6.46462971,117.96,117.92,4.21189071]
[1769376839096,10.41981116,117.97,117.92,4.21189071]
[1769376839588,10.41981116,117.98,117.93,4.21189071]
[1769376840276,10.41981116,117.98,117.93,10.67652042]
[1769376840698,10.41981116,118.0,117.95,4.21189071]
[1769376840998,10.41981116,118.0,117.96,4.21189071]
[1769376841193,3.95518145,118.0,117.96,4.21189071]
[1769376841396,18.89452616,118.0,117.96,4.21189071]
[1769376841781,10.41981116,117.99,117.95,4.21189071]
[1769376843102,6.46462971,117.98,117.95,4.21189071]
[1769376843501,18.8953902,117.99,117.95,4.21189071]
[1769376844501,3.95518145,117.95,117.91,4.25748136]
[1769376844681,10.41981116,117.95,117.91,4.25748136]
[1769376845381,10.41981116,117.96,117.91,4.25748136]
[1769376845580,10.41981116,117.96,117.92,4.25748136]
[1769376846096,6.46462971,117.95,117.92,4.25748136]
[1769376846402,14.94292294,117.95,117.92,4.25748136]
[1769376846595,12.43289059,117.96,117.92,4.25748136]
[1769376846775,18.8975203,117.96,117.92,4.25748136]
[1769376846979,10.41981116,117.96,117.92,4.25748136]
[1769376849206,10.41981116,117.98,117.93,4.25748136]
[1769376849499,6.46462971,117.98,117.94,4.25748136]
[1769376849992,10.41981116,117.99,117.94,4.25748136]
[1769376850303,6.46462971,118.0,117.95,4.25748136]
[1769376850521,6.46462971,117.99,117.95,4.25748136]
[1769376850700,10.41981116,118.0,117.95,4.25748136]
[1769376850882,6.46462971,118.0,117.95,4.25748136]
[1769376852001,6.46462971,118.0,117.96,4.25748136]
[1769376852400,14.93923966,118.0,117.96,4.25748136]
[1769376852599,6.46462971,117.99,117.96,4.25748136]
[1769376853105,3.95518145,118.01,117.96,4.25748136]
[1769376853106,12.42938718,118.01,117.96,4.25748136]
[1769376853303,18.89324344,118.02,117.97,4.25748136]
[1769376853701,10.41981116,118.02,117.97,10.72211107]
[1769376853877,18.89296598,118.02,117.98,4.25748136]
[1769376854082,10.41981116,118.01,117.97,4.25748136]
[1769376854321,6.46462971,118.01,117.97,4.25748136]
[1769376856216,6.46462971,118.0,117.97,4.25748136]
[1769376858319,8.47315482,118.02,117.97,4.25748136]
[1769376858489,6.46462971,118.02,117.98,4.13401859]
[1769376858692,3.95518145,118.03,117.98,4.13401859]
[1769376858906,6.46462971,118.02,117.98,4.13401859]
[1769376859503,10.41981116,118.03,117.98,4.13401859]
[1769376862621,10.41981116,118.03,117.99,4.13401859]
[1769376863222,6.46462971,118.02,117.99,4.13401859]
[1769376863726,2.40926633,118.02,117.99,4.13401859]
[1769376868805,2.40926633,118.04,118.0,4.13401859]
[1769376869128,2.40926633,118.02,117.97,4.13401859]
[1769376869425,2.40926633,118.02,117.98,4.13401859]
[1769376870122,2.40926633,118.01,117.98,4.13401859]
[1769376871131,6.36444778,118.02,117.98,4.13401859]
[1769376873329,14.83723397,118.03,117.98,4.13401859]
[1769376874526,6.36444778,117.99,117.94,4.24184175]
[1769376874737,2.40926633,117.98,117.94,4.24184175]
[1769376875727,2.40926633,117.98,117.94,8.47885357]
[1769376875925,6.36444778,117.99,117.95,4.24184175]
[1769376877343,8.47427345,118.01,117.95,4.24184175]
[1769376877519,3.95518145,118.05,117.99,4.24184175]
[1769376877723,2.40926633,118.05,118.0,4.24184175]
[1769376878019,2.40926633,118.04,118.0,4.24184175]
[1769376879839,6.36444778,118.04,118.0,4.24184175]
[1769376881537,10.40619187,118.04,118.0,4.24184175]
[1769376885444,6.45101042,118.04,118.0,4.24184175]
[1769376885746,6.45093828,118.04,118.0,4.24184175]
[1769376885947,10.40611973,118.05,118.01,4.24184175]
[1769376886131,10.40611973,118.04,118.01,4.24184175]
[1769376887959,6.45093828,118.03,117.98,4.24184175]
[1769376888127,6.45093828,118.02,117.98,4.24184175]
[1769376889235,10.40611973,118.02,117.98,4.24184175]
[1769376893151,3.95518145,118.02,117.98,4.24184175]
[1769376900341,11.79502684,118.05,118.0,4.24184175]
[1769376900541,3.95518145,118.05,118.01,10.69278003]
[1769376900740,3.95518145,118.05,118.02,4.24184175]
[1769376901252,10.40611973,118.05,118.01,4.24184175]
[1769376901651,6.36324821,118.05,118.01,4.24184175]
[1769376904466,2.40806676,118.05,118.01,4.24184175]
[1769376904643,6.36324821,118.03,117.99,4.16788147]
[1769376904854,2.40806676,118.02,117.98,4.16788147]
[1769376905049,3.95518145,117.99,117.96,4.16788147]
[1769376905263,3.95518145,117.96,117.93,4.16788147]
[1769376905465,6.36324821,117.97,117.93,4.16788147]
[1769376905971,6.36324821,117.96,117.93,4.16788147]
[1769376907170,3.95518145,117.94,117.89,4.16788147]
[1769376907369,6.36324821,117.92,117.88,4.16788147]
[1769376907963,6.36324821,117.91,117.87,4.26788147]
[1769376908147,5.34408856,117.93,117.87,12.7516527]
[1769376908148,6.36324821,117.92,117.87,12.7516527]
[1769376908342,7.75215532,117.93,117.88,4.16788147]
[1769376908543,2.40806676,117.93,117.89,4.16788147]
[1769376909469,6.36324821,117.92,117.88,4.16788147]
[1769376910592,3.95518145,117.92,117.88,4.16788147]
[1769376910869,11.70733677,117.95,117.91,4.16788147]
[1769376911659,3.95518145,117.92,117.89,4.16788147]
[1769376911853,6.36324821,117.92,117.88,4.16788147]
[1769376912852,6.36324821,117.91,117.87,4.26788147]
[1769376913048,2.40806676,117.9,117.87,4.26788147]
[1769376913670,6.36324821,117.91,117.87,4.26788147]
[1769376914061,2.40806676,117.9,117.83,10.48117381]
[1769376914266,2.40806676,117.87,117.83,8.48676873]
[1769376914476,2.40806676,117.87,117.83,4.16788147]
[1769376914675,6.26424821,117.87,117.83,4.16788147]
[1769376914852,3.85618145,117.87,117.83,4.16788147]
[1769376915264,6.26424821,117.87,117.83,4.16788147]
[1769376915872,6.26424821,117.87,117.82,0.1]
[1769376916077,6.26424821,117.87,117.79,21.22349677]
[1769376916078,2.40806676,117.83,117.79,4.42816069]
[1769376916265,6.26424821,117.84,117.8,4.42816069]
[1769376916461,3.85618145,117.84,117.8,12.91712431]
[1769376916776,6.26424821,117.86,117.82,4.42816069]
[1769376917581,6.26424821,117.86,117.8,12.91667607]
[1769376917582,6.4714172,117.86,117.8,12.91667607]
[1769376917786,6.4714172,117.83,117.78,4.42816069]
[1769376917957,35.03796073,117.87,117.79,4.42816069]
[1769376917958,6.4714172,117.84,117.79,4.42816069]
[1769376918161,10.32759865,117.83,117.78,4.42816069]
[1769376918372,6.4714172,117.81,117.78,4.42816069]
[1769376918680,6.4714172,117.8,117.77,4.52816069]
[1769376919056,10.32759865,117.81,117.77,4.52816069]
[1769376919261,5.34408856,117.84,117.77,0.1]
[1769376919262,6.4714172,117.79,117.77,0.1]
[1769376919463,6.4714172,117.79,117.76,0.437339]
[1769376919464,10.28903683,117.78,117.74,4.42816069]
[1769376919658,6.4714172,117.77,117.74,4.42816069]
[1769376920076,6.4714172,117.76,117.74,4.42816069]
[1769376920265,10.28903683,117.77,117.73,4.42816069]
[1769376920878,10.25124239,117.8,117.75,4.42816069]
[1769376921378,6.4714172,117.82,117.77,4.42816069]
[1769376921682,6.4714172,117.83,117.78,4.42816069]
[1769376921855,6.4714172,117.84,117.8,4.42816069]
[1769376922386,14.95685345,117.85,117.8,4.42816069]
[1769376922572,18.77447308,117.85,117.8,4.42816069]
[1769376922959,10.28903683,117.85,117.81,4.42816069]
[1769376923163,6.4714172,117.82,117.79,4.42816069]
[1769376924879,6.4714172,117.81,117.77,4.42816069]
[1769376925607,6.4714172,117.78,117.74,4.42816069]
[1769376925962,6.4714172,117.77,117.72,4.42816069]
[1769376926982,6.4714172,117.77,117.73,4.42816069]
[1769376927187,10.28903683,117.77,117.72,4.42816069]
[1769376927373,6.4714172,117.76,117.73,4.42816069]
[1769376927974,10.28903683,117.74,117.7,4.42816069]
[1769376928180,6.4714172,117.73,117.7,4.42816069]
[1769376928380,10.28903683,117.74,117.7,4.42816069]
[1769376928987,6.4714172,117.73,117.7,4.42816069]
[1769376929200,10.28903683,117.74,117.7,4.42816069]
[1769376929991,6.4714172,117.73,117.7,4.42816069]
[1769376931489,6.4714172,117.76,117.71,4.42816069]
[1769376931880,6.4714172,117.77,117.73,4.42816069]
[1769376933574,10.28903683,117.78,117.74,4.17852228]
[1769376933886,10.28903683,117.8,117.75,4.17852228]
[1769376934102,6.4714172,117.79,117.75,4.17852228]
[1769376935094,10.28903683,117.77,117.73,4.17852228]
[1769376935406,6.4714172,117.76,117.73,4.17852228]
[1769376935706,10.28903683,117.74,117.7,12.67454061]
[1769376935883,3.81761963,117.74,117.7,12.67454061]
[1769376936200,10.28903683,117.75,117.7,12.67454061]
[1769376936404,10.28903683,117.75,117.71,4.17852228]
[1769376937100,4.17491325,117.77,117.7,27.711859]
[1769376937296,6.4714172,117.75,117.7,27.711859]
[1769376937702,4.17491325,117.76,117.7,27.711859]
[1769376937880,6.4714172,117.75,117.7,21.2404418]
[1769376938675,10.64633045,117.74,117.7,8.49617672]
[1769376938869,6.4714172,117.73,117.69,8.49678577]
[1769376939172,6.4714172,117.73,117.69,12.67530805]
[1769376940493,6.4714172,117.73,117.69,4.17852228]
[1769376940694,6.4714172,117.72,117.69,4.17852228]
[1769376940884,10.64633045,117.72,117.68,12.67587587]
[1769376941198,6.4714172,117.72,117.68,12.67587587]
[1769376942187,6.4714172,117.72,117.68,4.17852228]
[1769376942404,8.49406606,117.73,117.68,4.17852228]
[1769376942578,8.49406606,117.73,117.69,4.17852228]
[1769376942579,6.4714172,117.73,117.69,4.17852228]
[1769376942974,10.64633045,117.76,117.71,4.17852228]
[1769376943699,6.4714172,117.73,117.69,4.17852228]
[1769376943895,4.17491325,117.69,117.64,4.17852228]
[1769376944108,6.4714172,117.68,117.64,4.17852228]
[1769376944275,10.64633045,117.69,117.64,4.17852228]
[1769376944475,10.64633045,117.69,117.65,8.49940983]
[1769376944691,6.4714172,117.68,117.65,4.17852228]
[1769376944893,10.64633045,117.67,117.63,4.17852228]
[1769376945092,6.4714172,117.66,117.63,4.17852228]
[1769376946188,4.17491325,117.67,117.61,4.17852228]
[1769376946378,4.17491325,117.69,117.64,4.17852228]
[1769376946574,6.4714172,117.69,117.65,4.17852228]
[1769376947807,6.48931082,117.69,117.65,4.17852228]
[1769376948606,6.48931082,117.69,117.65,12.67815851]
[1769376949101,6.48931082,117.69,117.64,21.25127507]
[1769376949292,6.48931082,117.67,117.63,4.17852228]
[1769376949789,6.48931082,117.66,117.63,12.67963368]
[1769376949995,6.48931082,117.67,117.63,12.67963368]
[1769376950397,6.48931082,117.67,117.64,4.17852228]
[1769376951615,4.17491325,117.64,117.6,40.67698121]
[1769376951909,4.17491325,117.66,117.61,4.17852228]
[1769376952086,6.48931082,117.65,117.61,4.17852228]
[1769376953108,6.48931082,117.65,117.61,12.68107602]
[1769376953294,4.17491325,117.66,117.61,12.68107602]
[1769376953295,10.66422407,117.66,117.61,12.68107602]
[1769376954908,6.48931082,117.65,117.61,12.68107602]
[1769376955698,10.66422407,117.66,117.62,12.68025438]
[1769376956098,6.48931082,117.65,117.62,4.17852228]
[1769376958227,5.34408856,117.68,117.6,36.49845893]
[1769376958228,4.17491325,117.62,117.6,36.49845893]
[1769376958397,6.48931082,117.61,117.6,36.49845893]
[1769376958592,6.48931082,117.62,117.6,36.49845893]
[1769376958795,6.48931082,117.63,117.6,36.49845893]
[1769376958994,6.48931082,117.63,117.6,40.67698121]
[1769376959693,6.48931082,117.65,117.61,4.17852228]
[1769376960095,6.48931082,117.66,117.61,4.17852228]
[1769376960402,6.48931082,117.66,117.62,12.68047772]
[1769376961706,4.17491325,117.71,117.65,4.17852228]
[1769376961890,6.48931082,117.7,117.65,4.17852228]
[1769376962716,6.48931082,117.7,117.66,4.17852228]
[1769376963308,10.66422407,117.71,117.66,4.17852228]
[1769376963621,6.48931082,117.7,117.66,4.17852228]
[1769376963824,6.48931082,117.67,117.64,12.69350684]
[1769376963999,6.48931082,117.68,117.65,4.19311874]
[1769376964194,10.66422407,117.69,117.65,4.19311874]
[1769376965917,6.48931082,117.68,117.65,4.19311874]
[1769376968632,4.17491325,117.69,117.65,4.19311874]
[1769376968807,10.66422407,117.69,117.65,4.19311874]
[1769376970829,8.49648992,117.7,117.65,4.19311874]
[1769376970830,10.66422407,117.7,117.66,4.19311874]
[1769376971538,10.66422407,117.72,117.67,4.19311874]
[1769376971709,6.48931082,117.72,117.67,4.19311874]
[1769376972311,10.66422407,117.72,117.67,4.19311874]
[1769376972510,6.48931082,117.71,117.67,4.19311874]
[1769376972823,10.66422407,117.72,117.67,4.19311874]
[1769376973015,19.15903593,117.72,117.67,4.19311874]
[1769376973828,14.98187982,117.75,117.7,4.19311874]
[1769376974230,19.15679307,117.75,117.7,4.19311874]
[1769376975652,6.48931082,117.75,117.72,4.44572065]
[1769376975931,6.48931082,117.74,117.7,4.44572065]
[1769376976235,10.54361999,117.74,117.7,4.44572065]
[1769376978025,6.48931082,117.75,117.71,4.44572065]
[1769376978227,10.54361999,117.76,117.71,4.44572065]
[1769376979345,19.03550529,117.76,117.71,4.44572065]
[1769376980242,10.54361999,117.78,117.73,4.44572065]
[1769376980541,6.48931082,117.77,117.73,4.44572065]
[1769376982927,6.48931082,117.76,117.73,4.44572065]
[1769376987951,10.54361999,117.77,117.73,4.44572065]
[1769376988948,6.48931082,117.77,117.72,8.494299]
[1769376989248,4.05430917,117.76,117.72,4.44572065]
[1769376991750,6.48931082,117.77,117.73,4.44572065]
[1769376992829,10.54361999,117.77,117.73,4.44572065]
[1769376993030,10.54361999,117.76,117.73,4.44572065]
[1769376993663,6.47446772,117.76,117.73,4.44572065]
[1769376994957,8.49048999,117.78,117.73,4.44572065]
[1769376995142,6.5950718,117.77,117.73,4.44572065]
[1769376995459,4.17491325,117.78,117.74,4.30289537]
[1769376995643,6.5950718,117.78,117.74,4.30289537]
[1769376996345,2.42015855,117.77,117.74,4.30289537]
[1769376996858,4.17491325,117.78,117.75,4.30289537]
[1769376997433,2.42015855,117.77,117.72,6.72305392]
[1769376997639,6.48104901,117.77,117.73,4.30289537]
[1769376998562,6.48104901,117.77,117.74,4.30289537]
[1769376998747,10.65596226,117.77,117.74,4.30289537]
[1769376999844,6.48104901,117.77,117.74,4.30289537]
[1769377001562,19.14666519,117.78,117.74,4.30289537]
[1769377003278,6.48104901,117.78,117.74,4.30289537]
[1769377003438,19.14600892,117.79,117.74,4.30289537]
[1769377007368,6.48104901,117.78,117.74,4.30289537]
[1769377009585,6.47942925,117.78,117.74,4.30289537]
[1769377012348,19.14438916,117.79,117.74,4.30289537]
[1769377013070,12.66315703,117.81,117.77,4.30289537]
[1769377013370,4.17491325,117.79,117.74,4.30289537]
[1769377013576,10.6543425,117.79,117.74,4.30289537]
[1769377013769,10.6543425,117.79,117.75,4.30289537]
[1769377014479,4.17491325,117.79,117.75,4.30289537]
[1769377015477,4.17491325,117.79,117.75,10.78232462]
[1769377016787,4.17491325,117.79,117.75,4.30289537]
[1769377018477,10.6543425,117.79,117.75,4.30289537]
[1769377019689,6.59359336,117.79,117.75,4.30289537]
[1769377020186,4.17491325,117.79,117.75,4.30289537]
[1769377020684,4.17491325,117.79,117.75,2.41868011]
[1769377020889,4.17491325,117.79,117.75,6.72157548]
[1769377021192,4.17491325,117.8,117.77,4.30289537]
[1769377021486,5.34408856,117.82,117.79,4.30289537]
[1769377021487,4.17491325,117.82,117.79,4.30289537]
[1769377022886,6.59359336,117.81,117.76,8.49135677]
[1769377023204,4.13330606,117.8,117.77,4.30289537]
[1769377023398,4.13330606,117.79,117.76,4.35470433]
[1769377024593,6.55198617,117.8,117.76,4.35470433]
[1769377024788,6.55198617,117.78,117.75,4.35470433]
[1769377025105,5.34408856,117.81,117.73,4.35470433]
[1769377025106,6.55198617,117.77,117.73,4.35470433]
[1769377025963,6.55198617,117.77,117.73,8.49399343]
[1769377026168,2.41868011,117.77,117.74,4.35470433]
[1769377029397,15.04253917,117.78,117.74,4.35470433]
[1769377030080,6.55198617,117.77,117.74,4.35470433]
[1769377031405,15.0431183,117.77,117.74,4.35470433]
[1769377032295,6.55198617,117.77,117.74,4.35470433]
[1769377033103,6.55198617,117.76,117.73,4.35470433]
[1769377035098,21.22464578,117.79,117.73,4.35470433]
[1769377035099,4.17491325,117.77,117.73,4.35470433]
[1769377035295,6.59359336,117.77,117.73,4.35470433]
[1769377036507,15.08444526,117.78,117.74,4.49171397]
[1769377036678,4.17491325,117.77,117.74,4.49171397]
[1769377037204,6.59359336,117.77,117.74,4.49171397]
[1769377039908,4.17491325,117.77,117.74,4.49171397]
[1769377040412,6.59359336,117.78,117.74,4.49171397]
[1769377040579,6.59359336,117.79,117.75,4.49171397]
[1769377040776,2.41868011,117.79,117.75,4.49171397]
[1769377040975,6.59359336,117.8,117.76,4.49171397]
[1769377042115,15.0820252,117.81,117.77,4.49171397]
[1769377043514,15.0820252,117.81,117.76,2.41868011]
[1769377043515,6.59359336,117.83,117.79,4.49171397]
[1769377043686,6.59359336,117.84,117.8,4.49171397]
[1769377043882,2.41868011,117.84,117.8,4.29171397]
[1769377044089,2.41868011,117.85,117.8,10.90708663]
[1769377044300,6.74397244,117.85,117.8,10.90708663]
[1769377044495,4.32529233,117.85,117.81,2.41868011]
[1769377044791,6.74397244,117.86,117.81,2.41868011]
[1769377045613,4.32529233,117.86,117.81,10.9067382]
[1769377045795,6.74397244,117.86,117.83,4.49171397]
[1769377046007,4.32529233,117.86,117.83,4.49171397]
[1769377047185,0.2,117.88,117.83,4.49171397]
[1769377047388,0.2,117.88,117.86,4.49171397]
[1769377048897,2.41868011,117.87,117.82,4.49171397]
[1769377049104,2.41868011,117.87,117.83,4.49171397]
[1769377050115,13.00857129,117.88,117.83,4.49171397]
[1769377050313,6.94397244,117.88,117.84,4.49171397]
[1769377050700,6.74397244,117.87,117.83,4.49171397]
[1769377052121,4.32529233,117.87,117.84,4.49171397]
[1769377053240,6.99159336,117.88,117.84,4.49171397]
[1769377053818,4.57291325,117.88,117.85,4.26278693]
[1769377054022,6.99159336,117.88,117.85,4.26278693]
[1769377054389,6.99159336,117.88,117.84,4.26278693]
[1769377056719,15.4748089,117.88,117.84,4.26278693]
[1769377057141,6.79159336,117.87,117.84,4.26278693]
[1769377059202,0.2,117.88,117.84,6.68146704]
[1769377059404,0.2,117.88,117.85,4.26278693]
[1769377059603,2.61868011,117.88,117.85,4.26278693]
[1769377059844,6.99159336,117.88,117.85,4.26278693]
[1769377060008,6.79159336,117.87,117.83,4.26278693]